[Event "Titled Tuesday Blitz November 15 Early 2022"]
[White "Torres Dominguez, David"]
[Black "Melikhov, Evgeny V."]
[WhiteFideId "2220857"]
[BlackFideId "4122046"]
[WhiteElo "2037"]
[BlackElo "2169"]
[Result "1-0"]
[Round "03"]
[TimeControl "180+1"]
[Date "2022.11.16"]
[WhiteClock "0:00:29"]
[BlackClock "0:00:53"]

1. e4 {[%clk 0:02:42]}  c5 {[%clk 0:02:58]} 2. Nf3 {[%clk 0:02:41]}  d6 {[%clk 0:02:57]} 3. d4 {[%clk 0:02:41]}  cxd4 {[%clk 0:02:58]} 4. Nxd4 {[%clk 0:02:42]}  Nf6 {[%clk 0:02:58]} 5. Nc3 {[%clk 0:02:43]}  a6 {[%clk 0:02:58]} 6. f4 {[%clk 0:02:42]}  e5 {[%clk 0:02:57]} 7. Nf3 {[%clk 0:02:41]}  Bg4 {[%clk 0:02:42]} 8. fxe5 {[%clk 0:02:16]}  Bxf3 {[%clk 0:02:41]} 9. gxf3 {[%clk 0:02:16]}  dxe5 {[%clk 0:02:41]} 10. Qxd8+ {[%clk 0:02:16]}  Kxd8 {[%clk 0:02:41]} 11. Bg5 {[%clk 0:02:15]}  Nd7 {[%clk 0:02:31]} 12. O-O-O {[%clk 0:01:55]}  Kc7 {[%clk 0:02:18]} 13. Bc4 {[%clk 0:01:50]}  Bb4 {[%clk 0:02:16]} 14. Nd5+ {[%clk 0:01:21]}  Nxd5 {[%clk 0:02:15]} 15. Bxd5 {[%clk 0:01:18]}  f6 {[%clk 0:02:14]} 16. Be3 {[%clk 0:01:09]}  Rad8 {[%clk 0:02:11]} 17. Rhg1 {[%clk 0:01:05]}  g5 {[%clk 0:02:09]} 18. Be6 {[%clk 0:01:01]}  Bc5 {[%clk 0:01:56]} 19. Rxd7+ {[%clk 0:00:56]}  Rxd7 {[%clk 0:01:56]} 20. Bxc5 {[%clk 0:00:55]}  Rg7 {[%clk 0:01:54]} 21. Bf5 {[%clk 0:00:51]}  Rd8 {[%clk 0:01:48]} 22. Rd1 {[%clk 0:00:45]}  Rxd1+ {[%clk 0:01:46]} 23. Kxd1 {[%clk 0:00:46]}  Kc6 {[%clk 0:01:40]} 24. Be3 {[%clk 0:00:44]}  h6 {[%clk 0:01:37]} 25. h3 {[%clk 0:00:44]}  b5 {[%clk 0:01:35]} 26. c3 {[%clk 0:00:44]}  Rg8 {[%clk 0:01:32]} 27. b3 {[%clk 0:00:43]}  Rd8+ {[%clk 0:01:32]} 28. Kc2 {[%clk 0:00:42]}  Rd6 {[%clk 0:01:29]} 29. a3 {[%clk 0:00:43]}  Rd8 {[%clk 0:01:28]} 30. c4 {[%clk 0:00:42]}  bxc4 {[%clk 0:01:17]} 31. bxc4 {[%clk 0:00:42]}  Rb8 {[%clk 0:01:16]} 32. Be6 {[%clk 0:00:42]}  h5 {[%clk 0:01:08]} 33. Bd5+ {[%clk 0:00:41]}  Kd6 {[%clk 0:01:05]} 34. c5+ {[%clk 0:00:41]}  Kc7 {[%clk 0:01:05]} 35. c6 {[%clk 0:00:41]}  h4 {[%clk 0:01:05]} 36. a4 {[%clk 0:00:39]}  a5 {[%clk 0:01:05]} 37. Bd2 {[%clk 0:00:36]}  Ra8 {[%clk 0:01:04]} 38. Kb3 {[%clk 0:00:36]}  Kd6 {[%clk 0:01:03]} 39. Kc4 {[%clk 0:00:35]}  Ra7 {[%clk 0:01:01]} 40. Be3 {[%clk 0:00:35]}  Ra8 {[%clk 0:00:58]} 41. Bc5+ {[%clk 0:00:35]}  Kc7 {[%clk 0:00:58]} 42. Be7 {[%clk 0:00:34]}  Rb8 {[%clk 0:00:56]} 43. Bxf6 {[%clk 0:00:34]}  Rb4+ {[%clk 0:00:56]} 44. Kc3 {[%clk 0:00:34]}  Rxa4 {[%clk 0:00:57]} 45. Bxe5+ {[%clk 0:00:34]}  Kb6 {[%clk 0:00:57]} 46. c7 {[%clk 0:00:34]}  Ra1 {[%clk 0:00:53]} 47. Kb2 {[%clk 0:00:29]} 1-0


[Site "https://www.chess.com"]

[Event "Titled Tuesday Blitz November 15 Early 2022"]
[White "Tsaruk, Maksim"]
[Black "Abdusattorov, Nodirbek"]
[WhiteFideId "13511173"]
[BlackFideId "14204118"]
[WhiteElo "2300"]
[BlackElo "2665"]
[Result "0-1"]
[Round "03"]
[TimeControl "180+1"]
[Date "2022.11.15"]
[WhiteClock "0:00:39"]
[BlackClock "0:01:20"]

1. e4 {[%clk 0:03:00]}  e5 {[%clk 0:02:59]} 2. Nf3 {[%clk 0:03:01]}  Nc6 {[%clk 0:02:59]} 3. Bb5 {[%clk 0:03:02]}  a6 {[%clk 0:02:59]} 4. Ba4 {[%clk 0:03:02]}  Nf6 {[%clk 0:02:59]} 5. O-O {[%clk 0:03:02]}  Be7 {[%clk 0:03:00]} 6. Re1 {[%clk 0:03:02]}  b5 {[%clk 0:03:00]} 7. Bb3 {[%clk 0:03:03]}  d6 {[%clk 0:03:01]} 8. c3 {[%clk 0:03:03]}  O-O {[%clk 0:03:01]} 9. h3 {[%clk 0:03:03]}  Na5 {[%clk 0:03:02]} 10. Bc2 {[%clk 0:03:03]}  c5 {[%clk 0:03:03]} 11. d4 {[%clk 0:03:03]}  Qc7 {[%clk 0:03:03]} 12. d5 {[%clk 0:03:03]}  Nc4 {[%clk 0:03:03]} 13. b3 {[%clk 0:03:03]}  Nb6 {[%clk 0:03:04]} 14. Nbd2 {[%clk 0:03:03]}  c4 {[%clk 0:03:00]} 15. b4 {[%clk 0:02:41]}  a5 {[%clk 0:03:00]} 16. a3 {[%clk 0:02:36]}  axb4 {[%clk 0:02:59]} 17. cxb4 {[%clk 0:02:36]}  Ne8 {[%clk 0:02:43]} 18. Nb1 {[%clk 0:02:35]}  Qd8 {[%clk 0:02:37]} 19. Nc3 {[%clk 0:02:35]}  Nc7 {[%clk 0:02:38]} 20. Be3 {[%clk 0:02:31]}  Rb8 {[%clk 0:02:37]} 21. Nd2 {[%clk 0:02:21]}  Bg5 {[%clk 0:02:35]} 22. Qf3 {[%clk 0:02:04]}  g6 {[%clk 0:02:31]} 23. Bxg5 {[%clk 0:02:03]}  Qxg5 {[%clk 0:02:31]} 24. Qe3 {[%clk 0:02:04]}  Qxe3 {[%clk 0:02:30]} 25. fxe3 {[%clk 0:01:56]}  Bd7 {[%clk 0:02:22]} 26. Rf1 {[%clk 0:01:38]}  Kg7 {[%clk 0:02:21]} 27. Kh2 {[%clk 0:01:27]}  Ra8 {[%clk 0:02:21]} 28. Ra2 {[%clk 0:01:26]}  f5 {[%clk 0:02:18]} 29. exf5 {[%clk 0:01:25]}  gxf5 {[%clk 0:02:18]} 30. e4 {[%clk 0:01:23]}  fxe4 {[%clk 0:02:06]} 31. Bxe4 {[%clk 0:01:20]}  Rxf1 {[%clk 0:01:42]} 32. Nxf1 {[%clk 0:01:21]}  Na4 {[%clk 0:01:43]} 33. Rc2 {[%clk 0:01:13]}  Be8 {[%clk 0:01:35]} 34. Nxa4 {[%clk 0:01:07]}  Rxa4 {[%clk 0:01:34]} 35. Rc3 {[%clk 0:01:08]}  Bg6 {[%clk 0:01:35]} 36. Bxg6 {[%clk 0:01:05]}  Nxd5 {[%clk 0:01:29]} 37. Rc1 {[%clk 0:00:38]}  hxg6 {[%clk 0:01:29]} 38. Nd2 {[%clk 0:00:39]}  Rxa3 {[%clk 0:01:25]} 39. Ne4 {[%clk 0:00:39]}  Ra6 {[%clk 0:01:20]} 40. Rd1 {[%clk 0:00:39]}  c3 {[%clk 0:01:20]} 0-1


[Site "https://www.chess.com"]

[Event "Titled Tuesday Blitz November 15 Early 2022"]
[White "Urbina Quiroz, Edwin"]
[Black "Hirneise, Jens"]
[WhiteFideId "6500650"]
[BlackFideId "24614734"]
[WhiteElo "2152"]
[BlackElo "2344"]
[Result "0-1"]
[Round "03"]
[TimeControl "180+1"]
[Date "2022.11.16"]
[WhiteClock "0:00:12"]
[BlackClock "0:00:38"]

1. d4 {[%clk 0:03:00]}  d5 {[%clk 0:02:58]} 2. Nf3 {[%clk 0:02:58]}  Nf6 {[%clk 0:02:57]} 3. g3 {[%clk 0:02:58]}  c5 {[%clk 0:02:57]} 4. Bg2 {[%clk 0:02:58]}  Nc6 {[%clk 0:02:57]} 5. O-O {[%clk 0:02:58]}  e6 {[%clk 0:02:51]} 6. b3 {[%clk 0:02:56]}  cxd4 {[%clk 0:02:50]} 7. Nxd4 {[%clk 0:02:57]}  Bc5 {[%clk 0:02:50]} 8. Bb2 {[%clk 0:02:57]}  O-O {[%clk 0:02:50]} 9. c4 {[%clk 0:02:55]}  Bxd4 {[%clk 0:02:31]} 10. Bxd4 {[%clk 0:02:56]}  dxc4 {[%clk 0:02:31]} 11. Bc5 {[%clk 0:02:42]}  Re8 {[%clk 0:02:26]} 12. Qc2 {[%clk 0:02:35]}  Qa5 {[%clk 0:02:17]} 13. Qxc4 {[%clk 0:02:29]}  Nd7 {[%clk 0:02:06]} 14. b4 {[%clk 0:02:19]}  Qc7 {[%clk 0:01:51]} 15. Nc3 {[%clk 0:02:12]}  Nce5 {[%clk 0:01:39]} 16. Nb5 {[%clk 0:01:58]}  Qd8 {[%clk 0:01:26]} 17. Qc3 {[%clk 0:01:52]}  Nxc5 {[%clk 0:01:23]} 18. Qxc5 {[%clk 0:01:38]}  Nd7 {[%clk 0:01:24]} 19. Qc3 {[%clk 0:01:19]}  Rf8 {[%clk 0:01:20]} 20. Rfd1 {[%clk 0:01:12]}  Qb6 {[%clk 0:01:19]} 21. a4 {[%clk 0:01:01]}  a5 {[%clk 0:01:19]} 22. Rd6 {[%clk 0:00:54]}  axb4 {[%clk 0:01:16]} 23. Qxb4 {[%clk 0:00:55]}  Qc5 {[%clk 0:01:16]} 24. Qb3 {[%clk 0:00:36]}  Nb6 {[%clk 0:01:12]} 25. Rdd1 {[%clk 0:00:32]}  Qc4 {[%clk 0:01:02]} 26. Qxc4 {[%clk 0:00:27]}  Nxc4 {[%clk 0:01:03]} 27. Rdc1 {[%clk 0:00:27]}  Na5 {[%clk 0:00:58]} 28. Nd6 {[%clk 0:00:23]}  Nb3 {[%clk 0:00:57]} 29. Nxc8 {[%clk 0:00:16]}  Nxc1 {[%clk 0:00:50]} 30. Bxb7 {[%clk 0:00:15]}  Raxc8 {[%clk 0:00:45]} 31. Bxc8 {[%clk 0:00:13]}  Rxc8 {[%clk 0:00:46]} 32. a5 {[%clk 0:00:14]}  Nxe2+ {[%clk 0:00:46]} 33. Kf1 {[%clk 0:00:14]}  Nd4 {[%clk 0:00:47]} 34. a6 {[%clk 0:00:14]}  Nc6 {[%clk 0:00:45]} 35. Rc1 {[%clk 0:00:14]}  Kf8 {[%clk 0:00:42]} 36. Rb1 {[%clk 0:00:12]}  Rc7 {[%clk 0:00:39]} 37. Rb6 {[%clk 0:00:12]}  Ke7 {[%clk 0:00:39]} 38. Ke2 {[%clk 0:00:12]}  Kd7 {[%clk 0:00:39]} 39. Ke3 {[%clk 0:00:12]}  Ne7 {[%clk 0:00:38]} 40. f4 {[%clk 0:00:12]}  Nd5+ {[%clk 0:00:38]} 0-1


[Site "https://www.chess.com"]

[Event "Titled Tuesday Blitz November 15 Early 2022"]
[White "Valle Maytin, Luis Enrique"]
[Black "Odegov, Artem"]
[WhiteFideId "3503666"]
[BlackFideId "34183644"]
[WhiteElo "2225"]
[BlackElo "2298"]
[Result "0-1"]
[Round "03"]
[TimeControl "180+1"]
[Date "2022.11.16"]
[WhiteClock "0:00:17"]
[BlackClock "0:00:48"]

1. e4 {[%clk 0:03:00]}  e6 {[%clk 0:02:59]} 2. d4 {[%clk 0:02:58]}  d5 {[%clk 0:02:59]} 3. Bd3 {[%clk 0:02:58]}  dxe4 {[%clk 0:02:58]} 4. Bxe4 {[%clk 0:02:59]}  Nf6 {[%clk 0:02:59]} 5. Bf3 {[%clk 0:02:59]}  c5 {[%clk 0:02:59]} 6. c3 {[%clk 0:02:59]}  Nc6 {[%clk 0:02:59]} 7. Ne2 {[%clk 0:02:59]}  Be7 {[%clk 0:02:52]} 8. O-O {[%clk 0:02:58]}  O-O {[%clk 0:02:51]} 9. Re1 {[%clk 0:02:54]}  cxd4 {[%clk 0:02:39]} 10. cxd4 {[%clk 0:02:54]}  Nd5 {[%clk 0:02:39]} 11. Nbc3 {[%clk 0:02:54]}  Bf6 {[%clk 0:02:31]} 12. Nxd5 {[%clk 0:02:53]}  exd5 {[%clk 0:02:21]} 13. Be3 {[%clk 0:02:52]}  Be6 {[%clk 0:02:19]} 14. Nc3 {[%clk 0:02:51]}  Rc8 {[%clk 0:02:17]} 15. Qd2 {[%clk 0:02:50]}  Na5 {[%clk 0:02:05]} 16. b3 {[%clk 0:02:46]}  Nc6 {[%clk 0:02:05]} 17. Rac1 {[%clk 0:02:45]}  Qd7 {[%clk 0:02:04]} 18. Na4 {[%clk 0:02:45]}  b6 {[%clk 0:02:03]} 19. Nc3 {[%clk 0:02:38]}  Rfe8 {[%clk 0:01:57]} 20. g3 {[%clk 0:02:30]}  g6 {[%clk 0:01:51]} 21. Bg2 {[%clk 0:02:30]}  Bg7 {[%clk 0:01:50]} 22. Ne2 {[%clk 0:02:03]}  Bf5 {[%clk 0:01:37]} 23. Nc3 {[%clk 0:01:57]}  Nb4 {[%clk 0:01:32]} 24. Bh6 {[%clk 0:00:46]}  Rxe1+ {[%clk 0:01:21]} 25. Rxe1 {[%clk 0:00:45]}  Bxh6 {[%clk 0:01:21]} 26. Qxh6 {[%clk 0:00:42]}  Rxc3 {[%clk 0:01:20]} 27. a3 {[%clk 0:00:43]}  Nc6 {[%clk 0:01:16]} 28. Bxd5 {[%clk 0:00:42]}  Nxd4 {[%clk 0:01:06]} 29. Bg2 {[%clk 0:00:22]}  Nf3+ {[%clk 0:01:00]} 30. Bxf3 {[%clk 0:00:22]}  Rxf3 {[%clk 0:01:01]} 31. Kg2 {[%clk 0:00:22]}  Rd3 {[%clk 0:00:59]} 32. Qf4 {[%clk 0:00:21]}  Rd4 {[%clk 0:00:54]} 33. Qb8+ {[%clk 0:00:19]}  Kg7 {[%clk 0:00:53]} 34. Re8 {[%clk 0:00:18]}  Qd5+ {[%clk 0:00:51]} 35. f3 {[%clk 0:00:18]}  Rd2+ {[%clk 0:00:51]} 36. Kf1 {[%clk 0:00:18]}  Qxf3+ {[%clk 0:00:49]} 37. Ke1 {[%clk 0:00:17]}  Qf2# {[%clk 0:00:48]} 0-1


[Site "https://www.chess.com"]

[Event "Titled Tuesday Blitz November 15 Early 2022"]
[White "Vasques, Antonio Pedro Freixial"]
[Black "Yaran, Siar"]
[WhiteFideId "1908332"]
[BlackFideId "6323006"]
[WhiteElo "2243"]
[BlackElo "2191"]
[Result "0-1"]
[Round "03"]
[TimeControl "180+1"]
[Date "2022.11.16"]
[WhiteClock "0:00:09"]
[BlackClock "0:00:37"]

1. e4 {[%clk 0:03:00]}  e5 {[%clk 0:03:00]} 2. Nf3 {[%clk 0:03:00]}  Nc6 {[%clk 0:03:00]} 3. Bc4 {[%clk 0:03:00]}  Bc5 {[%clk 0:03:00]} 4. O-O {[%clk 0:02:59]}  Nf6 {[%clk 0:03:00]} 5. d4 {[%clk 0:02:59]}  exd4 {[%clk 0:03:00]} 6. e5 {[%clk 0:03:00]}  d5 {[%clk 0:03:01]} 7. exf6 {[%clk 0:03:00]}  dxc4 {[%clk 0:03:01]} 8. Re1+ {[%clk 0:03:01]}  Be6 {[%clk 0:03:02]} 9. Ng5 {[%clk 0:03:01]}  Qd5 {[%clk 0:03:00]} 10. Nc3 {[%clk 0:03:01]}  Qf5 {[%clk 0:03:01]} 11. Nce4 {[%clk 0:03:02]}  Bb6 {[%clk 0:02:49]} 12. Ng3 {[%clk 0:01:57]}  Qg6 {[%clk 0:01:59]} 13. Nxe6 {[%clk 0:01:52]}  fxe6 {[%clk 0:01:59]} 14. Rxe6+ {[%clk 0:01:49]}  Kd7 {[%clk 0:01:52]} 15. fxg7 {[%clk 0:01:37]}  Qxe6 {[%clk 0:01:46]} 16. gxh8=Q {[%clk 0:01:37]}  Rxh8 {[%clk 0:01:47]} 17. Bg5 {[%clk 0:01:15]}  Kc8 {[%clk 0:01:44]} 18. Qf3 {[%clk 0:00:49]}  Re8 {[%clk 0:01:38]} 19. h4 {[%clk 0:00:46]}  a5 {[%clk 0:01:34]} 20. Rd1 {[%clk 0:00:46]}  Kb8 {[%clk 0:01:34]} 21. a3 {[%clk 0:00:44]}  a4 {[%clk 0:01:30]} 22. h5 {[%clk 0:00:38]}  Ne5 {[%clk 0:01:27]} 23. Qf5 {[%clk 0:00:38]}  Ng4 {[%clk 0:01:19]} 24. Qxe6 {[%clk 0:00:12]}  Rxe6 {[%clk 0:01:20]} 25. Kf1 {[%clk 0:00:12]}  d3 {[%clk 0:01:17]} 26. cxd3 {[%clk 0:00:12]}  Nxf2 {[%clk 0:01:17]} 27. Re1 {[%clk 0:00:11]}  Rxe1+ {[%clk 0:01:16]} 28. Kxe1 {[%clk 0:00:12]}  Nxd3+ {[%clk 0:01:16]} 29. Kd2 {[%clk 0:00:12]}  Bd4 {[%clk 0:01:06]} 30. Ne4 {[%clk 0:00:12]}  Nxb2 {[%clk 0:00:54]} 31. Bf6 {[%clk 0:00:12]}  c3+ {[%clk 0:00:47]} 32. Kc2 {[%clk 0:00:12]}  c5 {[%clk 0:00:43]} 33. Bxd4 {[%clk 0:00:11]}  cxd4 {[%clk 0:00:44]} 34. Nf6 {[%clk 0:00:12]}  b5 {[%clk 0:00:41]} 35. Nxh7 {[%clk 0:00:12]}  b4 {[%clk 0:00:41]} 36. Nf6 {[%clk 0:00:10]}  d3+ {[%clk 0:00:37]} 37. Kc1 {[%clk 0:00:09]}  d2+ {[%clk 0:00:37]} 0-1


[Site "https://www.chess.com"]

[Event "Titled Tuesday Blitz November 15 Early 2022"]
[White "Vokhidov, Shamsiddin"]
[Black "Mischuk, Dmitry"]
[WhiteFideId "14204223"]
[BlackFideId "14118734"]
[WhiteElo "2619"]
[BlackElo "2256"]
[Result "0-1"]
[Round "03"]
[TimeControl "180+1"]
[Date "2022.11.15"]
[WhiteClock "0:00:06"]
[BlackClock "0:01:11"]

1. e4 {[%clk 0:03:00]}  c5 {[%clk 0:02:58]} 2. Nf3 {[%clk 0:03:01]}  d6 {[%clk 0:02:57]} 3. d4 {[%clk 0:03:01]}  cxd4 {[%clk 0:02:58]} 4. Nxd4 {[%clk 0:03:01]}  Nf6 {[%clk 0:02:59]} 5. Nc3 {[%clk 0:03:02]}  g6 {[%clk 0:02:59]} 6. Be3 {[%clk 0:03:01]}  Bg7 {[%clk 0:02:59]} 7. f3 {[%clk 0:03:02]}  O-O {[%clk 0:02:59]} 8. Qd2 {[%clk 0:03:03]}  Nc6 {[%clk 0:03:00]} 9. O-O-O {[%clk 0:03:03]}  d5 {[%clk 0:03:00]} 10. exd5 {[%clk 0:03:04]}  Nxd5 {[%clk 0:03:01]} 11. Nxc6 {[%clk 0:03:05]}  bxc6 {[%clk 0:03:01]} 12. Bd4 {[%clk 0:03:05]}  e5 {[%clk 0:03:01]} 13. Bc5 {[%clk 0:03:05]}  Re8 {[%clk 0:03:01]} 14. Ne4 {[%clk 0:03:03]}  Qc7 {[%clk 0:03:01]} 15. h4 {[%clk 0:03:02]}  f5 {[%clk 0:03:01]} 16. Bc4 {[%clk 0:02:59]}  fxe4 {[%clk 0:02:42]} 17. fxe4 {[%clk 0:02:58]}  Be6 {[%clk 0:02:42]} 18. exd5 {[%clk 0:02:56]}  cxd5 {[%clk 0:02:42]} 19. Bxd5 {[%clk 0:02:57]}  Qxc5 {[%clk 0:02:40]} 20. Bxa8 {[%clk 0:02:57]}  Rxa8 {[%clk 0:02:41]} 21. Rhf1 {[%clk 0:02:54]}  e4 {[%clk 0:02:38]} 22. Qd6 {[%clk 0:02:49]}  Bh6+ {[%clk 0:02:06]} 23. Kb1 {[%clk 0:02:47]}  Qxd6 {[%clk 0:02:06]} 24. Rxd6 {[%clk 0:02:48]}  Bg4 {[%clk 0:02:04]} 25. Rd4 {[%clk 0:02:42]}  Re8 {[%clk 0:01:54]} 26. Re1 {[%clk 0:02:41]}  Bf5 {[%clk 0:01:51]} 27. g4 {[%clk 0:02:41]}  Bxg4 {[%clk 0:01:50]} 28. Rdxe4 {[%clk 0:02:41]}  Rxe4 {[%clk 0:01:51]} 29. Rxe4 {[%clk 0:02:42]}  Bf5 {[%clk 0:01:50]} 30. Re7 {[%clk 0:02:39]}  a5 {[%clk 0:01:46]} 31. Ra7 {[%clk 0:02:34]}  Bd2 {[%clk 0:01:46]} 32. b3 {[%clk 0:02:30]}  h5 {[%clk 0:01:46]} 33. Kb2 {[%clk 0:02:30]}  Be1 {[%clk 0:01:46]} 34. c4 {[%clk 0:02:30]}  Bxh4 {[%clk 0:01:45]} 35. c5 {[%clk 0:02:31]}  Bf2 {[%clk 0:01:44]} 36. Rxa5 {[%clk 0:02:28]}  h4 {[%clk 0:01:43]} 37. c6 {[%clk 0:02:28]}  Bg3 {[%clk 0:01:39]} 38. c7 {[%clk 0:02:24]}  Bxc7 {[%clk 0:01:31]} 39. Ra8+ {[%clk 0:02:23]}  Kh7 {[%clk 0:01:29]} 40. Ra7 {[%clk 0:02:24]}  h3 {[%clk 0:01:29]} 41. Rxc7+ {[%clk 0:02:25]}  Kh6 {[%clk 0:01:28]} 42. Rc1 {[%clk 0:02:07]}  Be4 {[%clk 0:01:27]} 43. Kc3 {[%clk 0:01:36]}  h2 {[%clk 0:01:26]} 44. b4 {[%clk 0:01:25]}  g5 {[%clk 0:01:25]} 45. Kd4 {[%clk 0:01:20]}  h1=Q {[%clk 0:01:25]} 46. Rxh1+ {[%clk 0:01:19]}  Bxh1 {[%clk 0:01:26]} 47. b5 {[%clk 0:01:18]}  Kh5 {[%clk 0:01:11]} 48. a4 {[%clk 0:01:16]}  g4 {[%clk 0:01:11]} 49. a5 {[%clk 0:01:14]}  Bb7 {[%clk 0:01:11]} 50. a6 {[%clk 0:01:10]}  Bc8 {[%clk 0:01:11]} 51. Kc5 {[%clk 0:00:12]}  g3 {[%clk 0:01:11]} 52. Kc6 {[%clk 0:00:11]}  g2 {[%clk 0:01:11]} 53. Kc7 {[%clk 0:00:10]}  g1=Q {[%clk 0:01:11]} 54. Kxc8 {[%clk 0:00:06]}  Qb6 {[%clk 0:01:11]} 0-1


[Site "https://www.chess.com"]

[Event "Titled Tuesday Blitz November 15 Early 2022"]
[White "Volkov, Maksim"]
[Black "Rangel, Daniel"]
[WhiteFideId "54123070"]
[BlackFideId "2124475"]
[WhiteElo "2257"]
[BlackElo "2225"]
[Result "1-0"]
[Round "03"]
[TimeControl "180+1"]
[Date "2022.11.16"]
[WhiteClock "0:00:07"]
[BlackClock "0:00:05"]

1. d4 {[%clk 0:03:00]}  Nf6 {[%clk 0:02:59]} 2. c4 {[%clk 0:03:01]}  e6 {[%clk 0:02:59]} 3. g3 {[%clk 0:03:00]}  d5 {[%clk 0:02:59]} 4. Nf3 {[%clk 0:03:00]}  c6 {[%clk 0:03:00]} 5. Bg2 {[%clk 0:03:00]}  Bb4+ {[%clk 0:02:57]} 6. Bd2 {[%clk 0:03:00]}  Be7 {[%clk 0:02:57]} 7. O-O {[%clk 0:03:00]}  O-O {[%clk 0:02:57]} 8. Qc2 {[%clk 0:03:00]}  b6 {[%clk 0:02:56]} 9. Rc1 {[%clk 0:03:01]}  Bb7 {[%clk 0:02:44]} 10. a4 {[%clk 0:03:01]}  dxc4 {[%clk 0:02:34]} 11. Qxc4 {[%clk 0:02:56]}  Ba6 {[%clk 0:02:32]} 12. Qc2 {[%clk 0:02:50]}  Bxe2 {[%clk 0:02:31]} 13. Ne5 {[%clk 0:02:50]}  Ba6 {[%clk 0:02:28]} 14. b4 {[%clk 0:02:42]}  Bb7 {[%clk 0:01:59]} 15. b5 {[%clk 0:02:08]}  Qxd4 {[%clk 0:01:44]} 16. Bc3 {[%clk 0:02:07]}  Qd6 {[%clk 0:01:42]} 17. bxc6 {[%clk 0:02:02]}  Nxc6 {[%clk 0:01:06]} 18. Na3 {[%clk 0:01:32]}  Rac8 {[%clk 0:00:48]} 19. Nb5 {[%clk 0:01:31]}  Qb8 {[%clk 0:00:48]} 20. Qb2 {[%clk 0:01:14]}  Nxe5 {[%clk 0:00:42]} 21. Bxe5 {[%clk 0:01:14]}  Qa8 {[%clk 0:00:42]} 22. Nc7 {[%clk 0:01:11]}  Rxc7 {[%clk 0:00:40]} 23. Rxc7 {[%clk 0:01:10]}  Bxg2 {[%clk 0:00:38]} 24. Rxe7 {[%clk 0:00:38]}  Bh3 {[%clk 0:00:19]} 25. f4 {[%clk 0:00:38]}  Qe4 {[%clk 0:00:08]} 26. Bxf6 {[%clk 0:00:32]}  gxf6 {[%clk 0:00:08]} 27. Qf2 {[%clk 0:00:31]}  Rc8 {[%clk 0:00:06]} 28. Re1 {[%clk 0:00:30]}  Qxa4 {[%clk 0:00:05]} 29. Qf3 {[%clk 0:00:18]}  Rc2 {[%clk 0:00:04]} 30. g4 {[%clk 0:00:14]}  Qd4+ {[%clk 0:00:03]} 31. Qe3 {[%clk 0:00:12]}  Rg2+ {[%clk 0:00:01]} 32. Kh1 {[%clk 0:00:13]}  Qd5 {[%clk 0:00:02]} 33. Qe4 {[%clk 0:00:08]}  Qa2 {[%clk 0:00:03]} 34. Qa8+ {[%clk 0:00:04]}  Kg7 {[%clk 0:00:02]} 35. Rxf7+ {[%clk 0:00:04]}  Kxf7 {[%clk 0:00:02]} 36. Qb7+ {[%clk 0:00:05]}  Kg6 {[%clk 0:00:03]} 37. Qe4+ {[%clk 0:00:05]}  Kg7 {[%clk 0:00:03]} 38. Qb7+ {[%clk 0:00:05]}  Kh6 {[%clk 0:00:04]} 39. g5+ {[%clk 0:00:05]}  fxg5 {[%clk 0:00:05]} 40. fxg5+ {[%clk 0:00:06]}  Kh5 {[%clk 0:00:05]} 41. Qf3+ {[%clk 0:00:06]}  Kxg5 {[%clk 0:00:04]} 42. Qxh3 {[%clk 0:00:06]}  Kg6 {[%clk 0:00:05]} 43. Qxg2+ {[%clk 0:00:06]}  Kf6 {[%clk 0:00:04]} 44. Qxa2 {[%clk 0:00:06]}  Ke7 {[%clk 0:00:05]} 45. Qxe6+ {[%clk 0:00:06]}  Kf8 {[%clk 0:00:05]} 46. Rg1 {[%clk 0:00:06]}  b5 {[%clk 0:00:05]} 47. Rg8# {[%clk 0:00:07]} 1-0


[Site "https://www.chess.com"]

[Event "Titled Tuesday Blitz November 15 Early 2022"]
[White "Wagner, Dennis"]
[Black "Terry, Renato"]
[WhiteFideId "24650684"]
[BlackFideId "3803457"]
[WhiteElo "2470"]
[BlackElo "2577"]
[Result "0-1"]
[Round "03"]
[TimeControl "180+1"]
[Date "2022.11.15"]
[WhiteClock "0:00:03"]
[BlackClock "0:01:39"]

1. d4 {[%clk 0:03:00]}  e6 {[%clk 0:02:59]} 2. Nf3 {[%clk 0:03:00]}  Nf6 {[%clk 0:03:00]} 3. c4 {[%clk 0:02:59]}  Bb4+ {[%clk 0:02:59]} 4. Bd2 {[%clk 0:02:59]}  Qe7 {[%clk 0:02:59]} 5. Nc3 {[%clk 0:02:56]}  O-O {[%clk 0:02:58]} 6. e3 {[%clk 0:02:56]}  d6 {[%clk 0:02:58]} 7. a3 {[%clk 0:02:52]}  Bxc3 {[%clk 0:02:58]} 8. Bxc3 {[%clk 0:02:53]}  Nbd7 {[%clk 0:02:58]} 9. Qc2 {[%clk 0:02:51]}  e5 {[%clk 0:02:58]} 10. O-O-O {[%clk 0:02:48]}  b6 {[%clk 0:02:54]} 11. Nd2 {[%clk 0:02:42]}  Bb7 {[%clk 0:02:51]} 12. f3 {[%clk 0:02:42]}  Rfe8 {[%clk 0:02:47]} 13. e4 {[%clk 0:02:33]}  c5 {[%clk 0:02:41]} 14. d5 {[%clk 0:02:30]}  a6 {[%clk 0:02:41]} 15. g4 {[%clk 0:02:24]}  Nf8 {[%clk 0:02:39]} 16. h4 {[%clk 0:02:19]}  Ng6 {[%clk 0:02:40]} 17. h5 {[%clk 0:02:14]}  Nf4 {[%clk 0:02:40]} 18. h6 {[%clk 0:02:11]}  g6 {[%clk 0:02:33]} 19. Kb1 {[%clk 0:02:07]}  Bc8 {[%clk 0:02:25]} 20. Qb3 {[%clk 0:01:33]}  Rb8 {[%clk 0:02:10]} 21. a4 {[%clk 0:01:32]}  Bd7 {[%clk 0:02:10]} 22. Kc2 {[%clk 0:01:22]}  Rb7 {[%clk 0:02:09]} 23. Nb1 {[%clk 0:01:22]}  Reb8 {[%clk 0:02:08]} 24. Na3 {[%clk 0:01:22]}  Ne8 {[%clk 0:02:05]} 25. Kb1 {[%clk 0:00:55]}  Nc7 {[%clk 0:02:05]} 26. Qc2 {[%clk 0:00:52]}  b5 {[%clk 0:02:02]} 27. axb5 {[%clk 0:00:51]}  axb5 {[%clk 0:02:03]} 28. cxb5 {[%clk 0:00:51]}  Nxb5 {[%clk 0:02:04]} 29. Nxb5 {[%clk 0:00:50]}  Bxb5 {[%clk 0:02:05]} 30. Bxb5 {[%clk 0:00:49]}  Rxb5 {[%clk 0:02:05]} 31. Rd2 {[%clk 0:00:28]}  Qb7 {[%clk 0:02:04]} 32. g5 {[%clk 0:00:20]}  Qa6 {[%clk 0:02:04]} 33. Kc1 {[%clk 0:00:17]}  Rb3 {[%clk 0:02:03]} 34. Kd1 {[%clk 0:00:10]}  Qb6 {[%clk 0:01:51]} 35. Ke1 {[%clk 0:00:09]}  c4 {[%clk 0:01:50]} 36. Kf1 {[%clk 0:00:07]}  Ra8 {[%clk 0:01:50]} 37. Rd1 {[%clk 0:00:06]}  Ra2 {[%clk 0:01:45]} 38. Rh2 {[%clk 0:00:04]}  Qd8 {[%clk 0:01:43]} 39. Kf2 {[%clk 0:00:02]}  Qxg5 {[%clk 0:01:43]} 40. Bd2 {[%clk 0:00:02]}  Rbxb2 {[%clk 0:01:39]} 41. Qxc4 {[%clk 0:00:02]}  Rxd2+ {[%clk 0:01:39]} 42. Rxd2 {[%clk 0:00:03]}  Rxd2+ {[%clk 0:01:39]} 0-1


[Site "https://www.chess.com"]